[Event "*** SCC Grand Prix: Titled Tuesday Blitz"]
[Site "Chess.com"]
[Date "2020.08.04"]
[Round "3"]
[White "Msb2"]
[Black "PotapovaM"]
[Result "0-1"]
[WhiteElo "2799"]
[BlackElo "2540"]
[TimeControl "180+1"]
[EndTime "14:13:15 PDT"]
[Termination "PotapovaM won by checkmate"]

1. d4 {[%clk 0:03:00.9]} 1... Nf6 {[%clk 0:02:59.5]} 2. c4 {[%clk 0:03:00.6]}
2... e6 {[%clk 0:02:56.5]} 3. Nc3 {[%clk 0:03:01.1]} 3... Bb4 {[%clk 0:02:56.2]}
4. e3 {[%clk 0:03:01.7]} 4... O-O {[%clk 0:02:52]} 5. Bd2 {[%clk 0:02:59.4]}
5... b6 {[%clk 0:02:47.7]} 6. Nf3 {[%clk 0:02:57.8]} 6... d5 {[%clk 0:02:46.7]}
7. cxd5 {[%clk 0:02:57.1]} 7... exd5 {[%clk 0:02:41.8]} 8. Bd3 {[%clk
0:02:57.7]} 8... Ba6 {[%clk 0:02:40.6]} 9. Bxa6 {[%clk 0:02:55.4]} 9... Nxa6
{[%clk 0:02:41.5]} 10. O-O {[%clk 0:02:56.3]} 10... c5 {[%clk 0:01:58.7]} 11. a3
{[%clk 0:02:49.9]} 11... Bxc3 {[%clk 0:01:57.8]} 12. Bxc3 {[%clk 0:02:50.8]}
12... c4 {[%clk 0:01:50.2]} 13. a4 {[%clk 0:02:40.7]} 13... Qe7 {[%clk
0:01:43.2]} 14. Nd2 {[%clk 0:02:35.6]} 14... Rfe8 {[%clk 0:01:36]} 15. b3 {[%clk
0:02:34.1]} 15... Rac8 {[%clk 0:01:28.8]} 16. bxc4 {[%clk 0:02:30.1]} 16... dxc4
{[%clk 0:01:29.7]} 17. Qf3 {[%clk 0:02:28.3]} 17... Ne4 {[%clk 0:01:25.8]} 18.
Nxe4 {[%clk 0:02:20.1]} 18... Qxe4 {[%clk 0:01:26.7]} 19. Qxe4 {[%clk 0:02:21]}
19... Rxe4 {[%clk 0:01:27.6]} 20. Rfe1 {[%clk 0:02:21.6]} 20... Rce8 {[%clk
0:01:15.9]} 21. Bd2 {[%clk 0:02:20.1]} 21... f5 {[%clk 0:01:13.3]} 22. Rac1
{[%clk 0:02:14.6]} 22... Rc8 {[%clk 0:01:02.3]} 23. f3 {[%clk 0:02:14.5]} 23...
Re7 {[%clk 0:01:02.4]} 24. e4 {[%clk 0:02:14.1]} 24... Kf7 {[%clk 0:01:00.9]}
25. Kf2 {[%clk 0:02:00.6]} 25... Rec7 {[%clk 0:01:00]} 26. Bf4 {[%clk
0:01:58.9]} 26... Rd7 {[%clk 0:00:59.2]} 27. Be5 {[%clk 0:01:56.4]} 27... c3
{[%clk 0:00:56.7]} 28. d5 {[%clk 0:01:37.5]} 28... c2 {[%clk 0:00:56.1]} 29. Ke3
{[%clk 0:01:33.4]} 29... Nb4 {[%clk 0:00:55.8]} 30. Kd2 {[%clk 0:01:33.6]} 30...
Nxd5 {[%clk 0:00:40.8]} 31. exf5 {[%clk 0:00:58.9]} 31... Nb4+ {[%clk
0:00:34.4]} 32. Ke2 {[%clk 0:00:55.3]} 32... Nd3 {[%clk 0:00:32.8]} 33. f4
{[%clk 0:00:55.8]} 33... Nxe1 {[%clk 0:00:23.8]} 34. Kxe1 {[%clk 0:00:55.6]}
34... Rc4 {[%clk 0:00:23.5]} 35. Ke2 {[%clk 0:00:55.6]} 35... a6 {[%clk
0:00:23.8]} 36. g4 {[%clk 0:00:51.3]} 36... b5 {[%clk 0:00:22.9]} 37. axb5
{[%clk 0:00:52.2]} 37... axb5 {[%clk 0:00:23.8]} 38. h4 {[%clk 0:00:53.1]} 38...
b4 {[%clk 0:00:22.9]} 39. h5 {[%clk 0:00:53.4]} 39... b3 {[%clk 0:00:22.7]} 40.
g5 {[%clk 0:00:53.8]} 40... Rb7 {[%clk 0:00:10.1]} 41. g6+ {[%clk 0:00:54.1]}
41... hxg6 {[%clk 0:00:09.8]} 42. fxg6+ {[%clk 0:00:50.7]} 42... Ke6 {[%clk
0:00:09.9]} 43. Bb2 {[%clk 0:00:47.2]} 43... Kf5 {[%clk 0:00:07.8]} 44. Kd3
{[%clk 0:00:45.8]} 44... Rxf4 {[%clk 0:00:07.2]} 45. Re1 {[%clk 0:00:46]} 45...
Rf3+ {[%clk 0:00:04.1]} 46. Kc4 {[%clk 0:00:46.4]} 46... Rc7+ {[%clk 0:00:04.1]}
47. Kb4 {[%clk 0:00:46.1]} 47... Rb7+ {[%clk 0:00:04.2]} 48. Kc4 {[%clk
0:00:44.6]} 48... Rc7+ {[%clk 0:00:04.7]} 49. Kd5 {[%clk 0:00:45]} 49... Rd3+
{[%clk 0:00:03.8]} 50. Bd4 {[%clk 0:00:45.9]} 50... Rxd4+ {[%clk 0:00:04.2]} 51.
Kxd4 {[%clk 0:00:45.9]} 51... c1=Q {[%clk 0:00:04.5]} 52. Re5+ {[%clk
0:00:46.8]} 52... Kf4 {[%clk 0:00:04.2]} 53. Re4+ {[%clk 0:00:47.7]} 53... Kf3
{[%clk 0:00:04.7]} 54. h6 {[%clk 0:00:48.6]} 54... Qd2+ {[%clk 0:00:04.1]} 55.
Ke5 {[%clk 0:00:48.9]} 55... Re7+ {[%clk 0:00:04.6]} 56. Kf5 {[%clk 0:00:48.9]}
56... Qd5+ {[%clk 0:00:04.7]} 57. Re5 {[%clk 0:00:49]} 57... Qxe5# {[%clk
0:00:05.1]} 0-1

[Event "*** SCC Grand Prix: Titled Tuesday Blitz"]
[Site "Chess.com"]
[Date "2020.08.04"]
[Round "3"]
[White "KuzubovYuriy"]
[Black "Koksik_13"]
[Result "0-1"]
[WhiteElo "2829"]
[BlackElo "2611"]
[TimeControl "180+1"]
[EndTime "14:13:18 PDT"]
[Termination "Koksik_13 won by resignation"]

1. d4 {[%clk 0:03:00.9]} 1... e6 {[%clk 0:02:59.5]} 2. c4 {[%clk 0:02:57.8]}
2... d5 {[%clk 0:02:59.5]} 3. Nc3 {[%clk 0:02:57.3]} 3... a6 {[%clk 0:03:00.2]}
4. cxd5 {[%clk 0:02:55.3]} 4... exd5 {[%clk 0:03:01.1]} 5. Nf3 {[%clk
0:02:54.8]} 5... Nf6 {[%clk 0:03:01.7]} 6. Bg5 {[%clk 0:02:54.3]} 6... Nbd7
{[%clk 0:03:01]} 7. e3 {[%clk 0:02:53.9]} 7... Be7 {[%clk 0:03:01.2]} 8. Bd3
{[%clk 0:02:51.9]} 8... O-O {[%clk 0:02:59.2]} 9. Qc2 {[%clk 0:02:50.3]} 9... c6
{[%clk 0:02:53.3]} 10. h3 {[%clk 0:02:45.3]} 10... Re8 {[%clk 0:02:53.2]} 11.
Bf4 {[%clk 0:02:38.5]} 11... Nf8 {[%clk 0:02:53]} 12. Ne5 {[%clk 0:02:27.8]}
12... Bd6 {[%clk 0:02:47.7]} 13. O-O {[%clk 0:01:42.7]} 13... Ng6 {[%clk
0:02:31.1]} 14. Nxg6 {[%clk 0:01:31.6]} 14... hxg6 {[%clk 0:02:30.8]} 15. Bxd6
{[%clk 0:01:30.2]} 15... Qxd6 {[%clk 0:02:31.7]} 16. Rfe1 {[%clk 0:01:29.9]}
16... Bd7 {[%clk 0:02:23.7]} 17. Rad1 {[%clk 0:01:25.7]} 17... Re7 {[%clk
0:02:21.8]} 18. Na4 {[%clk 0:01:19.5]} 18... Rae8 {[%clk 0:02:21.6]} 19. Qc5
{[%clk 0:01:16.1]} 19... Qb8 {[%clk 0:02:14]} 20. Nb6 {[%clk 0:01:00.2]} 20...
Bf5 {[%clk 0:02:11.6]} 21. Qc2 {[%clk 0:00:47.5]} 21... Bxd3 {[%clk 0:02:02.6]}
22. Rxd3 {[%clk 0:00:45.6]} 22... g5 {[%clk 0:01:59.9]} 23. Qd1 {[%clk
0:00:43.4]} 23... g6 {[%clk 0:01:57]} 24. Na4 {[%clk 0:00:42.7]} 24... Kg7
{[%clk 0:01:54.8]} 25. Nc5 {[%clk 0:00:38.6]} 25... Rh8 {[%clk 0:01:54]} 26. Qf3
{[%clk 0:00:24.5]} 26... Ne4 {[%clk 0:01:22]} 27. Rdd1 {[%clk 0:00:19.8]} 27...
f5 {[%clk 0:01:18.1]} 28. Nxe4 {[%clk 0:00:19.1]} 28... Rxe4 {[%clk 0:01:18]}
29. Qg3 {[%clk 0:00:16.8]} 29... Qd8 {[%clk 0:01:11]} 30. f3 {[%clk 0:00:16.6]}
30... Re6 {[%clk 0:01:07.6]} 31. Qf2 {[%clk 0:00:12.4]} 31... Rhe8 {[%clk
0:01:03.6]} 32. Re2 {[%clk 0:00:12]} 32... Qe7 {[%clk 0:00:43.9]} 33. Rde1
{[%clk 0:00:12]} 33... a5 {[%clk 0:00:43.9]} 34. a3 {[%clk 0:00:11.8]} 34... a4
{[%clk 0:00:41.8]} 35. Kf1 {[%clk 0:00:10.5]} 35... Qc7 {[%clk 0:00:41.6]} 36.
Kg1 {[%clk 0:00:10.5]} 36... Qb6 {[%clk 0:00:41.1]} 37. Qg3 {[%clk 0:00:09]}
37... Qd8 {[%clk 0:00:36.5]} 38. Qf2 {[%clk 0:00:09.2]} 38... Qd6 {[%clk
0:00:33.6]} 39. Kh1 {[%clk 0:00:07.9]} 39... g4 {[%clk 0:00:27.3]} 40. h4 {[%clk
0:00:07.6]} 40... g3 {[%clk 0:00:27.3]} 41. Qf1 {[%clk 0:00:06.4]} 41... Qe7
{[%clk 0:00:27.3]} 42. Kg1 {[%clk 0:00:05.9]} 42... Qxh4 {[%clk 0:00:27.7]} 0-1

[Event "*** SCC Grand Prix: Titled Tuesday Blitz"]
[Site "Chess.com"]
[Date "2020.08.04"]
[Round "3"]
[White "KatarinaOstojic"]
[Black "guillembaches"]
[Result "0-1"]
[WhiteElo "2205"]
[BlackElo "2401"]
[TimeControl "180+1"]
[EndTime "14:13:18 PDT"]
[Termination "guillembaches won on time"]

1. e4 {[%clk 0:03:00.9]} 1... c5 {[%clk 0:02:59.9]} 2. Nf3 {[%clk 0:03:00.6]}
2... d6 {[%clk 0:03:00.3]} 3. Bb5+ {[%clk 0:03:00.4]} 3... Bd7 {[%clk
0:02:59.7]} 4. Bxd7+ {[%clk 0:03:00]} 4... Qxd7 {[%clk 0:03:00.6]} 5. c4 {[%clk
0:02:59.5]} 5... e5 {[%clk 0:02:58.9]} 6. Nc3 {[%clk 0:02:57.6]} 6... Nc6 {[%clk
0:02:59]} 7. O-O {[%clk 0:02:57.4]} 7... Be7 {[%clk 0:02:59.2]} 8. d3 {[%clk
0:02:57.3]} 8... Bd8 {[%clk 0:02:59.3]} 9. a3 {[%clk 0:02:57]} 9... Nge7 {[%clk
0:02:59.2]} 10. Rb1 {[%clk 0:02:56.6]} 10... a5 {[%clk 0:02:59.2]} 11. Nd5
{[%clk 0:02:55.3]} 11... O-O {[%clk 0:02:56.8]} 12. Bd2 {[%clk 0:02:52.9]} 12...
f5 {[%clk 0:02:49.9]} 13. b4 {[%clk 0:02:25.9]} 13... axb4 {[%clk 0:02:48.9]}
14. axb4 {[%clk 0:02:24.6]} 14... Nxd5 {[%clk 0:02:41.8]} 15. cxd5 {[%clk
0:02:25.5]} 15... Nxb4 {[%clk 0:02:11.4]} 16. Bxb4 {[%clk 0:02:22.7]} 16... cxb4
{[%clk 0:02:12.3]} 17. Rxb4 {[%clk 0:02:22.7]} 17... b5 {[%clk 0:01:54.2]} 18.
Qb3 {[%clk 0:02:14.2]} 18... fxe4 {[%clk 0:01:39.8]} 19. dxe4 {[%clk 0:02:12.8]}
19... Ra4 {[%clk 0:01:39.4]} 20. Rxa4 {[%clk 0:01:42.8]} 20... bxa4 {[%clk
0:01:40.3]} 21. Qc4 {[%clk 0:01:22.5]} 21... Bb6 {[%clk 0:01:33.5]} 22. h3
{[%clk 0:01:10.4]} 22... a3 {[%clk 0:01:22.3]} 23. Ra1 {[%clk 0:01:06.5]} 23...
Bc5 {[%clk 0:01:14.5]} 24. Qb3 {[%clk 0:01:00.8]} 24... h6 {[%clk 0:01:03.3]}
25. Ra2 {[%clk 0:00:54.7]} 25... Rf4 {[%clk 0:00:56.1]} 26. Qb8+ {[%clk
0:00:41.3]} 26... Kh7 {[%clk 0:00:52.2]} 27. Qb1 {[%clk 0:00:38.6]} 27... Qf7
{[%clk 0:00:42.7]} 28. Qd3 {[%clk 0:00:36.9]} 28... Qg6 {[%clk 0:00:39.3]} 29.
Re2 {[%clk 0:00:32.7]} 29... Rf8 {[%clk 0:00:26.7]} 30. Ra2 {[%clk 0:00:30.2]}
30... Rb8 {[%clk 0:00:23.7]} 31. Nh4 {[%clk 0:00:22.1]} 31... Qf6 {[%clk
0:00:20.6]} 32. Nf5 {[%clk 0:00:22.2]} 32... g6 {[%clk 0:00:20.3]} 33. Ne3
{[%clk 0:00:22.2]} 33... Qf4 {[%clk 0:00:18.9]} 34. Ra1 {[%clk 0:00:12]} 34...
Rb2 {[%clk 0:00:17.4]} 35. Nd1 {[%clk 0:00:10]} 35... Rd2 {[%clk 0:00:16.2]} 36.
Qc4 {[%clk 0:00:09.3]} 36... Bxf2+ {[%clk 0:00:16.3]} 37. Kh1 {[%clk 0:00:08.3]}
37... h5 {[%clk 0:00:15.4]} 38. Nxf2 {[%clk 0:00:05]} 38... Qxf2 {[%clk
0:00:14.8]} 39. Qf1 {[%clk 0:00:05.9]} 39... Qxf1+ {[%clk 0:00:13.9]} 40. Rxf1
{[%clk 0:00:06.8]} 40... a2 {[%clk 0:00:14.3]} 41. Ra1 {[%clk 0:00:07.3]} 41...
Rb2 {[%clk 0:00:13.9]} 42. Kh2 {[%clk 0:00:07.7]} 42... h4 {[%clk 0:00:14.2]}
0-1

[Event "*** SCC Grand Prix: Titled Tuesday Blitz"]
[Site "Chess.com"]
[Date "2020.08.04"]
[Round "3"]
[White "GoltsevDmitry2000"]
[Black "Hrant_ChessMood"]
[Result "0-1"]
[WhiteElo "2628"]
[BlackElo "2858"]
[TimeControl "180+1"]
[EndTime "14:13:22 PDT"]
[Termination "Hrant_ChessMood won on time"]

1. e4 {[%clk 0:02:54.6]} 1... c6 {[%clk 0:02:59.1]} 2. Nf3 {[%clk 0:02:54.7]}
2... d5 {[%clk 0:03:00]} 3. exd5 {[%clk 0:02:54.3]} 3... cxd5 {[%clk 0:03:00.1]}
4. b3 {[%clk 0:02:52.2]} 4... Nf6 {[%clk 0:02:57.7]} 5. Bb2 {[%clk 0:02:52.4]}
5... Nc6 {[%clk 0:02:58]} 6. Be2 {[%clk 0:02:49.5]} 6... Bg4 {[%clk 0:02:57.8]}
7. h3 {[%clk 0:02:48.9]} 7... Bh5 {[%clk 0:02:56.8]} 8. Ne5 {[%clk 0:02:46.2]}
8... Bxe2 {[%clk 0:02:47.6]} 9. Qxe2 {[%clk 0:02:47.1]} 9... e6 {[%clk
0:02:48.1]} 10. O-O {[%clk 0:02:42.9]} 10... Bd6 {[%clk 0:02:47.3]} 11. Nxc6
{[%clk 0:02:34.6]} 11... bxc6 {[%clk 0:02:46.7]} 12. d3 {[%clk 0:02:35.1]} 12...
O-O {[%clk 0:02:43.4]} 13. Nd2 {[%clk 0:02:34.3]} 13... a5 {[%clk 0:02:40.5]}
14. a4 {[%clk 0:02:32.5]} 14... Re8 {[%clk 0:02:34.9]} 15. Nf3 {[%clk
0:02:32.2]} 15... e5 {[%clk 0:02:25.2]} 16. Nd2 {[%clk 0:02:07.1]} 16... Bb4
{[%clk 0:02:04.7]} 17. Rfe1 {[%clk 0:02:04.3]} 17... Nd7 {[%clk 0:02:00]} 18.
Red1 {[%clk 0:01:55.8]} 18... f6 {[%clk 0:01:54.1]} 19. Nf1 {[%clk 0:01:52.4]}
19... Nf8 {[%clk 0:01:50.4]} 20. Ne3 {[%clk 0:01:48.7]} 20... Ne6 {[%clk
0:01:50]} 21. Qg4 {[%clk 0:01:31.2]} 21... Qd7 {[%clk 0:01:43.2]} 22. Qf5 {[%clk
0:01:00.5]} 22... Rad8 {[%clk 0:01:40.4]} 23. Ng4 {[%clk 0:00:58.8]} 23... Nf4
{[%clk 0:01:33.9]} 24. Qxd7 {[%clk 0:00:57.4]} 24... Rxd7 {[%clk 0:01:34.8]} 25.
Ne3 {[%clk 0:00:53.7]} 25... Kf7 {[%clk 0:01:32.2]} 26. Kh2 {[%clk 0:00:50.2]}
26... h5 {[%clk 0:01:25]} 27. g3 {[%clk 0:00:49]} 27... Ne6 {[%clk 0:01:17.8]}
28. Ba3 {[%clk 0:00:41.9]} 28... Bxa3 {[%clk 0:01:06.4]} 29. Rxa3 {[%clk
0:00:42.8]} 29... Nd4 {[%clk 0:01:07.3]} 30. c3 {[%clk 0:00:34.6]} 30... Ne6
{[%clk 0:01:01]} 31. Rb1 {[%clk 0:00:27.2]} 31... Rb8 {[%clk 0:00:56.4]} 32. b4
{[%clk 0:00:24.9]} 32... Rdb7 {[%clk 0:00:55.6]} 33. Rab3 {[%clk 0:00:24.8]}
33... Nc5 {[%clk 0:00:54.8]} 34. Ra3 {[%clk 0:00:21.2]} 34... Nxd3 {[%clk
0:00:54.3]} 35. b5 {[%clk 0:00:17.5]} 35... cxb5 {[%clk 0:00:51.5]} 36. axb5
{[%clk 0:00:11.3]} 36... Rxb5 {[%clk 0:00:52.4]} 37. Rxb5 {[%clk 0:00:11.7]}
37... Rxb5 {[%clk 0:00:52.7]} 38. c4 {[%clk 0:00:12.3]} 38... dxc4 {[%clk
0:00:51.1]} 39. Nxc4 {[%clk 0:00:13.2]} 39... Rd5 {[%clk 0:00:41]} 40. Kg2
{[%clk 0:00:10]} 40... Rd4 {[%clk 0:00:36.1]} 41. Ne3 {[%clk 0:00:05.9]} 41...
a4 {[%clk 0:00:34.7]} 42. Nf5 {[%clk 0:00:05.8]} 42... Ne1+ {[%clk 0:00:29.9]}
43. Kf1 {[%clk 0:00:05.9]} 43... Nc2 {[%clk 0:00:30.8]} 44. Ra2 {[%clk
0:00:03.4]} 44... Rd2 {[%clk 0:00:27.6]} 45. Kg2 {[%clk 0:00:02.3]} 45... Ne1+
{[%clk 0:00:26]} 46. Kf1 {[%clk 0:00:02.1]} 46... Rxa2 {[%clk 0:00:26.9]} 47.
Kxe1 {[%clk 0:00:02.4]} 47... a3 {[%clk 0:00:27.8]} 0-1

[Event "*** SCC Grand Prix: Titled Tuesday Blitz"]
[Site "Chess.com"]
[Date "2020.08.04"]
[Round "3"]
[White "Jospem"]
[Black "MarcoRiehle"]
[Result "0-1"]
[WhiteElo "2921"]
[BlackElo "2737"]
[TimeControl "180+1"]
[EndTime "14:13:29 PDT"]
[Termination "MarcoRiehle won by checkmate"]

1. e4 {[%clk 0:03:00.9]} 1... e5 {[%clk 0:02:57.6]} 2. Nf3 {[%clk 0:03:01.1]}
2... Nf6 {[%clk 0:02:57.4]} 3. Nxe5 {[%clk 0:03:00.5]} 3... Nxe4 {[%clk
0:02:57.5]} 4. d4 {[%clk 0:02:51.1]} 4... d6 {[%clk 0:02:57]} 5. Nf3 {[%clk
0:02:50.4]} 5... d5 {[%clk 0:02:57]} 6. Bd3 {[%clk 0:02:51.1]} 6... Bd6 {[%clk
0:02:56.5]} 7. O-O {[%clk 0:02:51.8]} 7... O-O {[%clk 0:02:56.4]} 8. c4 {[%clk
0:02:52.5]} 8... c6 {[%clk 0:02:55.2]} 9. Nc3 {[%clk 0:02:47.9]} 9... Nxc3
{[%clk 0:02:54.2]} 10. bxc3 {[%clk 0:02:48.8]} 10... dxc4 {[%clk 0:02:54.6]} 11.
Bxc4 {[%clk 0:02:49.7]} 11... Bg4 {[%clk 0:02:52.1]} 12. h3 {[%clk 0:02:47.5]}
12... Bh5 {[%clk 0:02:51.9]} 13. Be2 {[%clk 0:02:47.8]} 13... Nd7 {[%clk
0:02:49.1]} 14. Nd2 {[%clk 0:02:35.5]} 14... Bxe2 {[%clk 0:02:37.9]} 15. Qxe2
{[%clk 0:02:36.4]} 15... Re8 {[%clk 0:02:38.2]} 16. Qf3 {[%clk 0:02:34.1]} 16...
Bc7 {[%clk 0:02:09.6]} 17. Rb1 {[%clk 0:02:13.9]} 17... Rb8 {[%clk 0:02:04.7]}
18. Ne4 {[%clk 0:01:52.4]} 18... Nf8 {[%clk 0:01:47.2]} 19. Nc5 {[%clk
0:01:33.8]} 19... Qc8 {[%clk 0:01:44.7]} 20. Bd2 {[%clk 0:01:26.6]} 20... Ne6
{[%clk 0:01:40.9]} 21. Ne4 {[%clk 0:01:23.7]} 21... Qd7 {[%clk 0:01:38.7]} 22.
a4 {[%clk 0:01:16.8]} 22... Qd5 {[%clk 0:01:34.8]} 23. Rfe1 {[%clk 0:01:14]}
23... b6 {[%clk 0:01:29.9]} 24. Qd3 {[%clk 0:01:01.8]} 24... c5 {[%clk 0:01:14]}
25. Be3 {[%clk 0:00:44.5]} 25... cxd4 {[%clk 0:01:12.7]} 26. cxd4 {[%clk
0:00:44.3]} 26... Rbd8 {[%clk 0:01:00]} 27. Nc3 {[%clk 0:00:34.7]} 27... Qd6
{[%clk 0:00:59.2]} 28. g3 {[%clk 0:00:35.2]} 28... Bb8 {[%clk 0:00:55.3]} 29. d5
{[%clk 0:00:33.7]} 29... Nc5 {[%clk 0:00:50.7]} 30. Bxc5 {[%clk 0:00:33.8]}
30... Qxc5 {[%clk 0:00:49.8]} 31. Rxe8+ {[%clk 0:00:28.3]} 31... Rxe8 {[%clk
0:00:50.7]} 32. Rd1 {[%clk 0:00:29]} 32... Rd8 {[%clk 0:00:49]} 33. Kg2 {[%clk
0:00:28.7]} 33... h6 {[%clk 0:00:44.1]} 34. Re1 {[%clk 0:00:23.9]} 34... Bd6
{[%clk 0:00:30.1]} 35. Re3 {[%clk 0:00:22.9]} 35... Be7 {[%clk 0:00:27.8]} 36.
Qa6 {[%clk 0:00:04.7]} 36... Bf6 {[%clk 0:00:25.9]} 37. Ne4 {[%clk 0:00:04.9]}
37... Qxd5 {[%clk 0:00:26.2]} 38. Qxa7 {[%clk 0:00:05.5]} 38... Bd4 {[%clk
0:00:24.9]} 39. Re2 {[%clk 0:00:05.7]} 39... f5 {[%clk 0:00:23.7]} 40. f3 {[%clk
0:00:02.4]} 40... fxe4 {[%clk 0:00:23.9]} 41. fxe4 {[%clk 0:00:03.3]} 41... Qc4
{[%clk 0:00:20.5]} 42. Rd2 {[%clk 0:00:03.9]} 42... Qc3 {[%clk 0:00:17.8]} 43.
Re2 {[%clk 0:00:04.5]} 43... Qd3 {[%clk 0:00:17.4]} 44. Ra2 {[%clk 0:00:01.9]}
44... Qxe4+ {[%clk 0:00:17.1]} 45. Kh2 {[%clk 0:00:02.5]} 45... Bg1+ {[%clk
0:00:16.5]} 46. Kxg1 {[%clk 0:00:02.3]} 46... Rd1+ {[%clk 0:00:16.9]} 47. Kf2
{[%clk 0:00:03.1]} 47... Qd4+ {[%clk 0:00:15.2]} 48. Ke2 {[%clk 0:00:02.6]}
48... Qd3+ {[%clk 0:00:15.1]} 49. Kf2 {[%clk 0:00:03.3]} 49... Rf1+ {[%clk
0:00:15.6]} 50. Kg2 {[%clk 0:00:03.9]} 50... Qf3+ {[%clk 0:00:16.2]} 51. Kh2
{[%clk 0:00:04.7]} 51... Rh1# {[%clk 0:00:16.6]} 0-1

[Event "*** SCC Grand Prix: Titled Tuesday Blitz"]
[Site "Chess.com"]
[Date "2020.08.04"]
[Round "3"]
[White "mapleaff"]
[Black "CzechmVIII"]
[Result "1-0"]
[WhiteElo "2365"]
[BlackElo "2153"]
[TimeControl "180+1"]
[EndTime "14:13:29 PDT"]
[Termination "mapleaff won by resignation"]

1. Nf3 {[%clk 0:02:58.8]} 1... c5 {[%clk 0:02:59.2]} 2. e4 {[%clk 0:02:53.6]}
2... d6 {[%clk 0:02:58.3]} 3. Bb5+ {[%clk 0:02:47.9]} 3... Bd7 {[%clk
0:02:57.6]} 4. Bxd7+ {[%clk 0:02:45.9]} 4... Qxd7 {[%clk 0:02:57.9]} 5. c4
{[%clk 0:02:43]} 5... e5 {[%clk 0:02:57.8]} 6. O-O {[%clk 0:02:38.8]} 6... Nc6
{[%clk 0:02:55.5]} 7. Nc3 {[%clk 0:02:27.1]} 7... Be7 {[%clk 0:02:55.5]} 8. d3
{[%clk 0:02:25.7]} 8... Bd8 {[%clk 0:02:55.5]} 9. Nd5 {[%clk 0:02:25.4]} 9...
Nge7 {[%clk 0:02:55.3]} 10. a3 {[%clk 0:02:22.2]} 10... O-O {[%clk 0:02:54.7]}
11. h3 {[%clk 0:02:21.3]} 11... f5 {[%clk 0:02:44.6]} 12. b4 {[%clk 0:02:17.1]}
12... cxb4 {[%clk 0:02:41.5]} 13. axb4 {[%clk 0:02:14.6]} 13... Nxd5 {[%clk
0:02:37.5]} 14. exd5 {[%clk 0:02:13.1]} 14... Nxb4 {[%clk 0:02:35]} 15. Ba3
{[%clk 0:02:12.9]} 15... Na6 {[%clk 0:02:32.2]} 16. Rb1 {[%clk 0:02:11.2]} 16...
Bb6 {[%clk 0:02:31.6]} 17. Ng5 {[%clk 0:02:08.5]} 17... Rae8 {[%clk 0:02:22.5]}
18. Ne6 {[%clk 0:02:06.6]} 18... Rxe6 {[%clk 0:02:22.7]} 19. dxe6 {[%clk
0:02:06.8]} 19... Qxe6 {[%clk 0:02:23.1]} 20. Qf3 {[%clk 0:01:52.7]} 20... e4
{[%clk 0:02:02.9]} 21. dxe4 {[%clk 0:01:37]} 21... fxe4 {[%clk 0:02:02.9]} 22.
Qe2 {[%clk 0:01:31.8]} 22... Rc8 {[%clk 0:01:41.5]} 23. Rbc1 {[%clk 0:01:12.5]}
23... Nc5 {[%clk 0:01:35.5]} 24. Rfe1 {[%clk 0:01:09.9]} 24... Qf5 {[%clk
0:01:22.4]} 25. Bxc5 {[%clk 0:00:57.3]} 25... Bxc5 {[%clk 0:01:22.5]} 26. Rcd1
{[%clk 0:00:58.2]} 26... Rf8 {[%clk 0:01:16.8]} 27. Rd2 {[%clk 0:00:48.7]} 27...
Bb4 {[%clk 0:01:10.5]} 28. Rd5 {[%clk 0:00:46.2]} 28... Qf7 {[%clk 0:00:47.3]}
29. Rb1 {[%clk 0:00:42.7]} 29... Bc5 {[%clk 0:00:44.9]} 30. Rb2 {[%clk
0:00:34.7]} 30... b6 {[%clk 0:00:36.3]} 31. Rd1 {[%clk 0:00:26.2]} 31... Qf4
{[%clk 0:00:31.1]} 32. Re1 {[%clk 0:00:23.1]} 32... Bd4 {[%clk 0:00:22]} 33. Rd2
{[%clk 0:00:22.6]} 33... Be5 {[%clk 0:00:20.8]} 34. g3 {[%clk 0:00:21.9]} 34...
Qf5 {[%clk 0:00:18.9]} 35. Qxe4 {[%clk 0:00:21.3]} 35... Qxh3 {[%clk 0:00:19.2]}
36. Qd5+ {[%clk 0:00:19.9]} 36... Kh8 {[%clk 0:00:19.2]} 37. Qg2 {[%clk
0:00:20.4]} 37... Qf5 {[%clk 0:00:18.4]} 38. Rd5 {[%clk 0:00:19.8]} 38... h6
{[%clk 0:00:17.8]} 39. f4 {[%clk 0:00:20.1]} 39... Qf6 {[%clk 0:00:15.6]} 40.
fxe5 {[%clk 0:00:19.7]} 40... dxe5 {[%clk 0:00:14]} 41. Rdxe5 {[%clk 0:00:20.6]}
41... Qd6 {[%clk 0:00:12.8]} 42. Re8 {[%clk 0:00:17.8]} 42... Qd4+ {[%clk
0:00:13.1]} 43. Kh2 {[%clk 0:00:15.2]} 43... Rxe8 {[%clk 0:00:14]} 44. Rxe8+
{[%clk 0:00:14.8]} 44... Kh7 {[%clk 0:00:14.9]} 45. Qe4+ {[%clk 0:00:14.8]} 1-0